[Event "Kragero Resort International 2022"]
[Site "Kragero"]
[Date "2022.02.24"]
[Round "3.4"]
[White "Dahli, Vincent"]
[Black "Gharibyan, Mane"]
[Result "1-0"]
[ECO "E16"]
[WhiteElo "1714"]
[BlackElo "1592"]
[Annotator "NA RC"]
[PlyCount "59"]
[EventDate "2022.02.23"]
[EventType "swiss"]
[EventCountry "NOR"]
[SourceTitle "playchess.com"]
[Source "ChessBase"]
[SourceQuality "1"]
[TimeControl "5400+30"]

1. d4 {[%emt 0:00:53]} Nf6 {[%emt 0:00:22]} 2. c4 {[%emt 0:01:15]} e6 {[%emt 0:00:07]} 3. g3 {[%emt 0:00:27]} d5 {[%emt 0:12:02]} 4. Bg2 {[%emt 0:05:35]} Bb4+ {[%emt 0:04:07]} 5. Bd2 {[%emt 0:01:08]} Bxd2+ {[%emt 0:01:48]} 6. Nxd2 {[%emt 0:02:27]} O-O {[%emt 0:00:41]} 7. Ngf3 {[%emt 0:03:12]} b6 {[%emt 0:07:34]} 8. O-O {[%emt 0:05:07]} Bb7 {[%emt 0:04:03]} 9. Rc1 {[%emt 0:02:45]} Nbd7 {[%emt 0:02:57]} 10. Qc2 {[%emt 0:07:52]} c5 {[%emt 0:04:33]} 11. Rfd1 {[%emt 0:07:20]} Rc8 {[%emt 0:04:14]} 12. dxc5 {[%emt 0:03:24]} bxc5 {[%emt 0:05:24]} 13. Qa4 {[%emt 0:03:02]} Qb6 {[%emt 0:05:50]} 14. cxd5 {[%emt 0:05:38]} exd5 {[%emt 0:01:47]} 15. b3 {[%emt 0:04:53]} Rfe8 {[%emt 0:06:34]} 16. e4 {[%emt 0:07:52]} Bc6 {[%emt 0:11:42]} 17. Qa3 {[%emt 0:03:06]} Nxe4 {[%emt 0:02:44]} 18. Nxe4 {[%emt 0:02:12]} Rxe4 {[%emt 0:01:41]} 19. Nh4 {[%emt 0:12:26]} Re5 {[%emt 0:06:40]} 20. Re1 {[%emt 0:04:56]} Rce8 {[%emt 0:01:47]} 21. Rxe5 {[%emt 0:00:20]} Rxe5 {[%emt 0:00:48]} 22. b4 {[%emt 0:00:41]} cxb4 {[%emt 0:04:11]} 23. Qb2 {[%emt 0:00:24]} Re8 {[%emt 0:04:20]} 24. Nf5 {[%emt 0:01:14]} Ne5 {[%emt 0:02:36]} 25. h3 {[%emt 0:07:57]} f6 {[%emt 0:02:01]} 26. Qc2 {[%emt 0:00:26]} Nc4 {[%emt 0:00:53]} 27. Qd3 {[%emt 0:04:01]} Qb5 {[%emt 0:01:50]} 28. Nd4 {[%emt 0:01:44]} Qb6 {[%emt 0:00:41]} 29. Nxc6 {[%emt 0:00:26]} Qxc6 {[%emt 0:00:27]} 30. Bxd5+ {[%emt 0:00:11]} 1-0

[Event "Kragero Resort International 2022"]
[Site "Kragero"]
[Date "2022.02.24"]
[Round "3.5"]
[White "Stromhaug, Kristoffer Wang"]
[Black "Omarsson, Adam"]
[Result "0-1"]
[ECO "C41"]
[WhiteElo "1694"]
[BlackElo "1546"]
[Annotator "NA RC"]
[PlyCount "56"]
[EventDate "2022.02.23"]
[EventType "swiss"]
[EventCountry "NOR"]
[SourceTitle "playchess.com"]
[Source "ChessBase"]
[SourceQuality "1"]
[TimeControl "5400+30"]

1. e4 {[%emt 0:00:24]} g6 {[%emt 0:00:15]} 2. d4 {[%emt 0:00:10]} Bg7 {[%emt 0:00:26]} 3. Nc3 {[%emt 0:00:18]} d6 {[%emt 0:00:33]} 4. Be3 {[%emt 0:00:30]} Nf6 {[%emt 0:01:31]} 5. f3 {[%emt 0:00:29]} O-O {[%emt 0:01:16]} 6. Nge2 {[%emt 0:00:18]} e5 {[%emt 0:01:12]} 7. Qd2 {[%emt 0:00:32]} exd4 {[%emt 0:01:01]} 8. Nxd4 {[%emt 0:00:21]} a6 {[%emt 0:00:39]} 9. O-O-O {[%emt 0:04:48]} b5 {[%emt 0:02:01]} 10. Bh6 {[%emt 0:04:28]} b4 {[%emt 0:01:11]} 11. Nd5 {[%emt 0:01:36]} c5 {[%emt 0:02:31]} 12. Nb3 {[%emt 0:01:16]} Bxh6 {[%emt 0:01:59]} 13. Qxh6 {[%emt 0:00:17]} Nxd5 {[%emt 0:02:58]} 14. exd5 {[%emt 0:02:27]} a5 {[%emt 0:02:37]} 15. h4 {[%emt 0:04:04]} a4 {[%emt 0:00:55]} 16. h5 {[%emt 0:00:22]} Ra7 {[%emt 0:00:18]} 17. Nd2 {[%emt 0:00:19]} a3 {[%emt 0:02:06]} 18. b3 {[%emt 0:04:37]} Bf5 {[%emt 0:03:23]} 19. g4 {[%emt 0:00:54]} Qf6 {[%emt 0:00:26]} 20. Ne4 {[%emt 0:12:53]} Bxe4 {[%emt 0:00:45]} 21. fxe4 {[%emt 0:00:02]} Qb2+ {[%emt 0:00:37]} 22. Kd2 {[%emt 0:00:07]} Qc3+ {[%emt 0:00:31]} 23. Kc1 {[%emt 0:01:32]} Qa1+ {[%emt 0:00:19]} 24. Kd2 {[%emt 0:00:07]} Qxa2 {[%emt 0:01:01]} 25. e5 {[%emt 0:02:43]} Qb2 {[%emt 0:01:13]} 26. e6 {[%emt 0:03:20]} Qc3+ {[%emt 0:00:35]} 27. Ke2 {[%emt 0:00:28]} Qxc2+ {[%emt 0:00:26]} 28. Kf3 {[%emt 0:01:36]} Qxd1+ {[%emt 0:00:09]} 0-1

[Event "Kragero Resort International 2022"]
[Site "Kragero"]
[Date "2022.02.24"]
[Round "3.6"]
[White "Lien, Sebastian"]
[Black "Stolp, Aleksander"]
[Result "1/2-1/2"]
[ECO "D36"]
[WhiteElo "1532"]
[BlackElo "1680"]
[Annotator "NA RC"]
[PlyCount "31"]
[EventDate "2022.02.23"]
[EventType "swiss"]
[EventCountry "NOR"]
[SourceTitle "playchess.com"]
[Source "ChessBase"]
[SourceQuality "1"]
[TimeControl "5400+30"]

1. d4 {[%emt 0:01:02]} Nf6 {[%emt 0:00:09]} 2. c4 {[%emt 0:00:07]} e6 {[%emt 0:00:15]} 3. Nf3 {[%emt 0:03:15]} d5 {[%emt 0:00:28]} 4. Bg5 {[%emt 0:01:10]} Be7 {[%emt 0:03:55]} 5. e3 {[%emt 0:01:37]} O-O {[%emt 0:04:07]} 6. Nc3 {[%emt 0:05:45]} Nbd7 {[%emt 0:02:30]} 7. cxd5 {[%emt 0:10:22]} exd5 {[%emt 0:00:37]} 8. Bd3 {[%emt 0:00:22]} c6 {[%emt 0:00:35]} 9. O-O {[%emt 0:00:23]} Ne4 {[%emt 0:07:32]} 10. Bxe7 {[%emt 0:30:15]} Qxe7 {[%emt 0:00:25]} 11. Qc2 {[%emt 0:00:21]} Re8 {[%emt 0:03:18]} 12. b4 {[%emt 0:04:39]} Ndf6 {[%emt 0:14:17]} 13. a3 {[%emt 0:03:44]} Bf5 {[%emt 0:06:09]} 14. Ne5 {[%emt 0:06:04]} Bg6 {[%emt 0:03:35]} 15. Nxg6 {[%emt 0:09:33]} hxg6 {[%emt 0:01:10]} 16. Bxe4 {[%emt 0:00:29]} 1/2-1/2

[Event "Kragero Resort International 2022"]
[Site "Kragero"]
[Date "2022.02.24"]
[Round "3.7"]
[White "Abdrlauf, Elham"]
[Black "Chatalbashev, Boris"]
[Result "1/2-1/2"]
[ECO "B77"]
[WhiteElo "2343"]
[BlackElo "2515"]
[Annotator "RC"]
[PlyCount "91"]
[EventDate "2022.02.23"]
[EventType "swiss"]
[EventCountry "NOR"]
[SourceTitle "playchess.com"]
[Source "ChessBase"]
[SourceQuality "1"]
[TimeControl "5400+30"]

1. e4 {[%emt 0:00:04]} c5 {[%emt 0:00:08]} 2. Nf3 {[%emt 0:00:04]} Nc6 {[%emt 0:00:05]} 3. d4 {[%emt 0:00:04]} cxd4 {[%emt 0:00:06]} 4. Nxd4 {[%emt 0:00:01]} g6 {[%emt 0:00:09]} 5. Nc3 {[%emt 0:00:07]} Bg7 {[%emt 0:00:05]} 6. Be3 {[%emt 0:00:04]} Nf6 {[%emt 0:00:14]} 7. Bc4 {[%emt 0:00:05]} O-O {[%emt 0:01:05]} 8. Bb3 {[%emt 0:00:05]} d6 {[%emt 0:00:07]} 9. f3 {[%emt 0:00:04]} Bd7 {[%emt 0:00:36]} 10. Qd2 {[%emt 0:00:05]} Nxd4 {[%emt 0:00:50]} 11. Bxd4 {[%emt 0:00:05]} b5 {[%emt 0:00:08]} 12. Nd5 {[%emt 0:03:33]} Nxd5 {[%emt 0:01:33]} 13. exd5 {[%emt 0:00:12]} Qc7 {[%emt 0:09:36]} 14. O-O {[%emt 0:15:43]} Bxd4+ {[%emt 0:08:07]} 15. Qxd4 {[%emt 0:00:22]} a5 {[%emt 0:00:04]} 16. c3 {[%emt 0:03:08]} a4 {[%emt 0:03:38]} 17. Bd1 {[%emt 0:00:05]} a3 {[%emt 0:01:28]} 18. b4 {[%emt 0:00:25]} Rfc8 {[%emt 0:07:52]} 19. Rc1 {[%emt 0:00:29]} Qa7 {[%emt 0:05:29]} 20. Be2 {[%emt 0:07:49]} Qxd4+ {[%emt 0:11:05]} 21. cxd4 {[%emt 0:00:06]} Ra4 {[%emt 0:06:39]} 22. Rxc8+ {[%emt 0:07:23]} Bxc8 {[%emt 0:00:10]} 23. Rb1 {[%emt 0:00:08]} Bf5 {[%emt 0:00:37]} 24. Rb3 {[%emt 0:00:13]} Bc2 {[%emt 0:00:24]} 25. Rc3 {[%emt 0:01:05]} Bb1 {[%emt 0:00:07]} 26. Bxb5 {[%emt 0:00:35]} Rxb4 {[%emt 0:00:10]} 27. Bc4 {[%emt 0:07:04]} g5 {[%emt 0:03:39]} 28. Bb3 {[%emt 0:02:25]} Kg7 {[%emt 0:04:45]} 29. Rc4 {[%emt 0:02:45]} Rb7 {[%emt 0:17:07]} 30. Ra4 {[%emt 0:00:51]} Kf6 {[%emt 0:00:01]} 31. Kf1 {[%emt 0:09:35]} h5 {[%emt 0:00:06]} 32. Rxa3 {[%emt 0:09:12]} Rb4 {[%emt 0:00:02]} 33. Ra4 {[%emt 0:12:53]} Rxa4 {[%emt 0:00:08]} 34. Bxa4 {[%emt 0:00:02]} Bxa2 {[%emt 0:00:08]} 35. Bc6 {[%emt 0:00:02]} h4 {[%emt 0:05:59]} 36. Kf2 {[%emt 0:01:15]} Bb3 {[%emt 0:02:27]} 37. Ke3 {[%emt 0:02:59]} Kg6 {[%emt 0:02:02]} 38. g3 {[%emt 0:05:03]} f5 {[%emt 0:01:58]} 39. Be8+ {[%emt 0:02:46]} Kf6 {[%emt 0:00:58]} 40. Bc6 {[%emt 0:00:07]} Bd1 {[%emt 0:00:33]} 41. Bd7 {[%emt 0:01:14]} Bb3 {[%emt 0:01:15]} 42. Bc6 {[%emt 0:00:16]} Kg6 {[%emt 0:00:56]} 43. Be8+ {[%emt 0:00:06]} Kg7 {[%emt 0:00:06]} 44. Bd7 {[%emt 0:00:52]} Kf6 {[%emt 0:00:26]} 45. Bc6 {[%emt 0:01:12]} Bc4 {[%emt 0:00:23]} 46. Bb7 {[%emt 0:00:37]} 1/2-1/2

[Event "Kragero Resort International 2022"]
[Site "Kragero"]
[Date "2022.02.24"]
[Round "3.7"]
[White "Johannessen, Martin T."]
[Black "Lye, Sigurd"]
[Result "1-0"]
[ECO "D35"]
[WhiteElo "1629"]
[BlackElo "1810"]
[Annotator "NA RC"]
[PlyCount "87"]
[EventDate "2022.02.23"]
[EventType "swiss"]
[EventCountry "NOR"]
[SourceTitle "playchess.com"]
[Source "ChessBase"]
[SourceQuality "1"]
[TimeControl "5400+30"]

1. d4 {[%emt 0:00:00]} Nf6 {[%emt 0:00:05]} 2. c4 {[%emt 0:00:04]} e6 {[%emt 0:00:06]} 3. Nc3 {[%emt 0:00:36]} Bb4 {[%emt 0:00:08]} 4. Bf4 {[%emt 0:01:15]} d5 {[%emt 0:02:06]} 5. e3 {[%emt 0:01:42]} O-O {[%emt 0:03:29]} 6. Nf3 {[%emt 0:00:37]} c5 {[%emt 0:09:47] 6...c5 is better than 6...Ne4.} 7. Be2 {[%emt 0:08:59]} Nc6 {[%emt 0:03:43]} 8. O-O {[%emt 0:04:30]} cxd4 {[%emt 0:06:10]} 9. Nxd4 {[%emt 0:04:04] [#]} Bd6 $146 {[%emt 0:06:16]} ({Predecessor:} 9... Qe7 10. cxd5 exd5 11. Rc1 Rd8 12. Ncb5 Bd7 13. a3 Nxd4 14. Nxd4 Bc5 15. Bf3 h6 {½-½ (34) Howell,D (2658)-Abasov,N (2664) Tornelo INT 2021}) 10. cxd5 {[%emt 0:22:03]} Nxd4 {[%emt 0:17:27]} 11. Qxd4 {[%emt 0:01:58]} Bxf4 {[%emt 0:03:01]} 12. exf4 {[%emt 0:05:49]} exd5 {[%emt 0:01:49]} 13. Bf3 {[%emt 0:08:59]} Be6 {[%emt 0:01:22]} 14. Rfd1 {[%emt 0:03:08]} Qd7 {[%emt 0:02:45]} 15. Rd2 {[%emt 0:02:50]} ({Wrong is} 15. Bxd5 $2 Nxd5 16. f5 (16. Nxd5 $2 Rfd8 $19) 16... Nxc3 17. Qxd7 Bxd7 $19) (15. Nxd5 $2 Bxd5 16. Bxd5 Rad8 17. Qxa7 Nxd5 $19) 15... Rfd8 {[%emt 0:02:45]} 16. Rad1 {[%emt 0:00:30]} Qe8 {[%emt 0:07:36]} 17. Qe5 {[%emt 0:06:26]} Nd7 {[%emt 0:13:19]} 18. Qe3 {[%emt 0:10:11]} Nb6 {[%emt 0:00:31]} 19. b3 {[%emt 0:02:25]} Qc6 {[%emt 0:01:51]} 20. f5 {[%emt 0:05:07]} ({Better is} 20. a4) 20... Bxf5 {[%emt 0:02:52]} 21. Nxd5 {[%emt 0:00:42]} Nxd5 {[%emt 0:03:26]} 22. Bxd5 {[%emt 0:00:32]} Qe8 {[%emt 0:00:19]} 23. Qf3 {[%emt 0:03:29]} Bg6 {[%emt 0:05:18]} 24. Re2 {[%emt 0:02:59]} Qf8 {[%emt 0:02:15]} 25. Rde1 {[%emt 0:00:32]} Rab8 {[%emt 0:01:41]} 26. Bxb7 {[%emt 0:01:09]} Bd3 {[%emt 0:02:07]} 27. Re7 {[%emt 0:00:41]} Bg6 {[%emt 0:01:00]} 28. Bc6 {[%emt 0:01:08]} Rbc8 {[%emt 0:00:36]} 29. h3 {[%emt 0:01:18]} a5 {[%emt 0:00:22]} 30. R1e3 {[%emt 0:01:03]} h6 $16 {[%emt 0:00:29]} 31. Qe2 {[%emt 0:00:32]} Kh7 {[%emt 0:00:36]} 32. Be4 {[%emt 0:00:34]} Rc1+ {[%emt 0:00:37]} 33. Kh2 {[%emt 0:00:06]} Bxe4 {[%emt 0:00:22]} 34. R3xe4 {[%emt 0:00:05]} Rdd1 {[%emt 0:00:11]} 35. Qf3 {[%emt 0:00:46]} Rh1+ {[%emt 0:00:52]} 36. Kg3 {[%emt 0:00:06]} Qb8+ {[%emt 0:00:15]} 37. Qf4 {[%emt 0:00:28]} Rc3+ {[%emt 0:00:38]} 38. f3 {[%emt 0:00:11]} Qb6 {[%emt 0:00:47]} 39. Qxf7 {[%emt 0:01:07]} Qd6+ {[%emt 0:00:27]} 40. Rf4 {[%emt 0:00:57]} Rxf3+ {[%emt 0:00:31]} 41. gxf3 {[%emt 0:00:28]} Rg1+ {[%emt 0:00:24]} 42. Kh4 {[%emt 0:00:32]} Qxf4+ {[%emt 0:00:36]} 43. Qxf4 {[%emt 0:00:08]} Kh8 {[%emt 0:00:18]} 44. Qg4 {[%emt 0:00:11]} 1-0

[Event "Kragero Resort International 2022"]
[Site "Kragero"]
[Date "2022.02.24"]
[Round "3.8"]
[White "Alvanjyan, Aida"]
[Black "Thorisson, Benedikt"]
[Result "0-1"]
[ECO "C01"]
[WhiteElo "1566"]
[BlackElo "1790"]
[Annotator "NA RC"]
[PlyCount "72"]
[EventDate "2022.02.23"]
[EventType "swiss"]
[EventCountry "NOR"]
[SourceTitle "playchess.com"]
[Source "ChessBase"]
[SourceQuality "1"]
[TimeControl "5400+30"]

1. e4 {[%emt 0:00:05]} e6 {[%emt 0:00:13]} 2. d4 {[%emt 0:00:05]} d5 {[%emt 0:00:08]} 3. Bd3 {[%emt 0:00:49]} Nf6 {[%emt 0:02:20]} 4. e5 {[%emt 0:01:24]} Nfd7 {[%emt 0:01:10]} 5. Ne2 {[%emt 0:01:22]} c5 {[%emt 0:00:14]} 6. c3 {[%emt 0:00:11]} Nc6 {[%emt 0:00:26]} 7. a3 {[%emt 0:01:01]} a5 {[%emt 0:05:45]} 8. O-O {[%emt 0:05:48]} Be7 {[%emt 0:02:01]} 9. f4 {[%emt 0:06:52]} Qb6 {[%emt 0:01:49]} 10. Bc2 {[%emt 0:06:27]} cxd4 {[%emt 0:05:35]} 11. cxd4 {[%emt 0:09:31]} Nxd4 {[%emt 0:01:34]} 12. Be3 {[%emt 0:12:22]} Nxe2+ {[%emt 0:00:39]} 13. Qxe2 {[%emt 0:01:58]} Bc5 {[%emt 0:03:40]} 14. Bxc5 {[%emt 0:07:05]} Qxc5+ {[%emt 0:00:54]} 15. Kh1 {[%emt 0:00:26]} b6 {[%emt 0:01:34]} 16. Nc3 {[%emt 0:04:33]} O-O {[%emt 0:02:33]} 17. Rf3 {[%emt 0:03:35]} Qe7 {[%emt 0:03:38]} 18. Rh3 {[%emt 0:07:54]} g6 {[%emt 0:02:01]} 19. Qg4 {[%emt 0:04:27]} Bb7 {[%emt 0:03:44]} 20. Re1 {[%emt 0:02:14]} Rac8 {[%emt 0:00:47]} 21. f5 {[%emt 0:05:03]} exf5 {[%emt 0:07:48]} 22. Bxf5 {[%emt 0:00:38]} Rcd8 {[%emt 0:05:27]} 23. Qg3 {[%emt 0:06:00]} Nc5 {[%emt 0:05:45]} 24. Rh6 {[%emt 0:04:30]} Ne6 {[%emt 0:02:22]} 25. h4 {[%emt 0:03:27]} Ng7 {[%emt 0:02:40]} 26. Bb1 {[%emt 0:01:07]} Qd7 {[%emt 0:06:33]} 27. Rf1 {[%emt 0:02:01]} d4 {[%emt 0:00:41]} 28. Ne4 {[%emt 0:00:49]} Bxe4 {[%emt 0:01:38]} 29. Bxe4 {[%emt 0:00:02]} d3 {[%emt 0:00:20]} 30. h5 {[%emt 0:01:58]} d2 {[%emt 0:00:31]} 31. Bc2 {[%emt 0:00:35]} Rc8 {[%emt 0:00:59]} 32. hxg6 {[%emt 0:01:25]} Rxc2 {[%emt 0:04:29]} 33. Rxh7 {[%emt 0:00:38]} d1=Q {[%emt 0:01:59]} 34. Rxd1 {[%emt 0:00:35]} Qxd1+ {[%emt 0:00:33]} 35. Kh2 {[%emt 0:00:01]} Rc1 {[%emt 0:03:34]} 36. Qh4 {[%emt 0:00:58]} Qh1+ {[%emt 0:00:18]} 0-1

[Event "Kragero Resort International 2022"]
[Site "Kragero"]
[Date "2022.02.24"]
[Round "3.13"]
[White "Kenneskog, Theodor"]
[Black "Kaasen, Tor Fredrik"]
[Result "0-1"]
[ECO "C60"]
[WhiteElo "2344"]
[BlackElo "2458"]
[Annotator "RC"]
[PlyCount "90"]
[EventDate "2022.02.23"]
[EventType "swiss"]
[EventCountry "NOR"]
[SourceTitle "playchess.com"]
[Source "ChessBase"]
[SourceQuality "1"]
[TimeControl "5400+30"]

1. e4 {[%emt 0:00:04]} e5 {[%emt 0:00:57]} 2. Nf3 {[%emt 0:00:10]} Nc6 {[%emt 0:00:06]} 3. Bb5 {[%emt 0:00:17]} a6 {[%emt 0:00:26]} 4. Ba4 {[%emt 0:00:06]} d6 {[%emt 0:00:35]} 5. O-O {[%emt 0:01:59]} Bd7 {[%emt 0:00:42]} 6. c3 {[%emt 0:00:15]} g6 {[%emt 0:00:38]} 7. d4 {[%emt 0:00:09]} Bg7 {[%emt 0:00:25]} 8. Re1 {[%emt 0:08:27]} Nf6 {[%emt 0:00:53]} 9. h3 {[%emt 0:11:08]} O-O {[%emt 0:00:55]} 10. Nbd2 {[%emt 0:00:33]} exd4 {[%emt 0:02:58]} 11. cxd4 {[%emt 0:00:30]} Nb4 {[%emt 0:00:30]} 12. Bxd7 {[%emt 0:09:45]} Qxd7 {[%emt 0:00:43]} 13. Nb1 {[%emt 0:01:31]} d5 {[%emt 0:07:23]} 14. Ne5 {[%emt 0:05:47]} Qd8 {[%emt 0:10:24]} 15. a3 {[%emt 0:01:31]} Nc6 {[%emt 0:01:28]} 16. Nxc6 {[%emt 0:00:22]} bxc6 {[%emt 0:00:50]} 17. e5 {[%emt 0:00:06]} Nd7 {[%emt 0:04:18]} 18. b4 {[%emt 0:07:38]} a5 {[%emt 0:04:16]} 19. Bd2 {[%emt 0:17:39]} axb4 {[%emt 0:06:40]} 20. Bxb4 {[%emt 0:00:06]} c5 {[%emt 0:00:49]} 21. Bxc5 {[%emt 0:03:40]} Nxc5 {[%emt 0:00:32]} 22. dxc5 {[%emt 0:00:04]} Re8 {[%emt 0:03:08]} 23. f4 {[%emt 0:08:24]} Ra5 {[%emt 0:07:07]} 24. Nd2 {[%emt 0:01:37]} Rxc5 {[%emt 0:01:04]} 25. Rc1 {[%emt 0:01:05]} Bf8 {[%emt 0:01:55]} 26. Kh2 {[%emt 0:01:04]} Qe7 {[%emt 0:16:14]} 27. Nf3 {[%emt 0:02:19]} Ra8 {[%emt 0:05:58]} 28. f5 {[%emt 0:02:04]} gxf5 {[%emt 0:04:00]} 29. Rxc5 {[%emt 0:03:55]} Qxc5 {[%emt 0:00:05]} 30. Nd4 {[%emt 0:00:04]} Qc4 {[%emt 0:02:54]} 31. Kh1 {[%emt 0:02:31]} Rxa3 {[%emt 0:08:38]} 32. Nxf5 {[%emt 0:00:06]} Qf4 {[%emt 0:00:35]} 33. Nd4 {[%emt 0:08:48]} Ra2 {[%emt 0:02:31]} 34. Nf3 {[%emt 0:00:36]} Qg3 {[%emt 0:00:31]} 35. Re2 {[%emt 0:00:06]} Rxe2 {[%emt 0:00:48]} 36. Qxe2 {[%emt 0:00:02]} Qg6 {[%emt 0:00:29]} 37. Qb5 {[%emt 0:01:07]} c5 {[%emt 0:01:11]} 38. Kh2 {[%emt 0:01:03]} d4 {[%emt 0:00:24]} 39. Qc4 {[%emt 0:00:42]} Qe6 {[%emt 0:00:41]} 40. Qd3 {[%emt 0:00:05]} Bh6 {[%emt 0:00:53]} 41. Qe4 {[%emt 0:00:27]} Qg6 {[%emt 0:00:22]} 42. Qa8+ {[%emt 0:02:16]} Kg7 {[%emt 0:00:05]} 43. Qd8 {[%emt 0:00:25]} Bf4+ {[%emt 0:01:05]} 44. Kg1 {[%emt 0:00:05]} Bg3 {[%emt 0:01:08]} 45. Kh1 {[%emt 0:01:11]} h6 {[%emt 0:00:22]} 0-1

[Event "Kragero Resort International 2022"]
[Site "Kragero"]
[Date "2022.02.24"]
[Round "3.15"]
[White "Injac, Teodora"]
[Black "Gjestemoen-VonHirsch, Andre"]
[Result "1/2-1/2"]
[ECO "A16"]
[WhiteElo "2407"]
[BlackElo "2243"]
[Annotator "RC"]
[PlyCount "71"]
[EventDate "2022.02.23"]
[EventType "swiss"]
[EventCountry "NOR"]
[SourceTitle "playchess.com"]
[Source "ChessBase"]
[SourceQuality "1"]
[TimeControl "5400+30"]

1. Nf3 {[%emt 0:02:10]} Nf6 {[%emt 0:00:05]} 2. c4 {[%emt 0:00:36]} g6 {[%emt 0:00:05]} 3. Nc3 {[%emt 0:00:57]} Bg7 {[%emt 0:00:04]} 4. e4 {[%emt 0:02:18]} e5 {[%emt 0:00:18]} 5. Nxe5 {[%emt 0:02:56]} O-O {[%emt 0:00:09]} 6. f4 {[%emt 0:04:33]} d6 {[%emt 0:00:12]} 7. Nf3 {[%emt 0:00:17]} Nxe4 {[%emt 0:00:42]} 8. Nxe4 {[%emt 0:00:09]} Re8 {[%emt 0:00:08]} 9. d3 {[%emt 0:00:16]} f5 {[%emt 0:00:28]} 10. Be2 {[%emt 0:00:45]} fxe4 {[%emt 0:00:07]} 11. dxe4 {[%emt 0:00:01]} Nc6 {[%emt 0:11:43]} 12. O-O {[%emt 0:06:00]} Qf6 {[%emt 0:10:52]} 13. c5 {[%emt 0:34:52]} Rxe4 {[%emt 0:21:33]} 14. Ng5 {[%emt 0:01:08]} Re7 {[%emt 0:02:36]} 15. cxd6 {[%emt 0:07:20]} cxd6 {[%emt 0:00:36]} 16. Kh1 {[%emt 0:03:51]} h6 {[%emt 0:07:20]} 17. Bc4+ {[%emt 0:13:48]} Kh8 {[%emt 0:00:07]} 18. Nf3 {[%emt 0:00:48]} Bf5 {[%emt 0:08:20]} 19. a3 {[%emt 0:00:08]} Rae8 {[%emt 0:00:17]} 20. Ra2 {[%emt 0:00:47]} Nd4 {[%emt 0:14:29]} 21. b3 {[%emt 0:02:25]} Nxf3 {[%emt 0:01:29]} 22. Qxf3 {[%emt 0:00:16]} Be4 {[%emt 0:02:23]} 23. Qf2 {[%emt 0:00:29]} d5 {[%emt 0:01:52]} 24. Bb5 {[%emt 0:03:19]} Rc8 {[%emt 0:00:17]} 25. Rd2 {[%emt 0:01:42]} Qf5 {[%emt 0:02:02]} 26. Bb2 {[%emt 0:01:17]} Bxb2 {[%emt 0:01:12]} 27. Rxb2 {[%emt 0:00:02]} a6 {[%emt 0:00:06]} 28. Be2 {[%emt 0:04:43]} Rec7 {[%emt 0:01:40]} 29. Rd2 {[%emt 0:01:19]} Rc2 {[%emt 0:03:20]} 30. Bd1 {[%emt 0:00:09]} R2c3 {[%emt 0:01:52]} 31. Qd4+ {[%emt 0:00:32]} Kh7 {[%emt 0:00:05]} 32. Kg1 {[%emt 0:00:28]} h5 {[%emt 0:00:53]} 33. Qf2 {[%emt 0:00:54]} Rf8 {[%emt 0:01:40]} 34. Qd4 {[%emt 0:01:24]} Rfc8 {[%emt 0:01:06]} 35. Qf2 {[%emt 0:00:03]} Rf8 {[%emt 0:00:52]} 36. Qd4 {[%emt 0:00:09]} 1/2-1/2

[Event "Kragero Resort International 2022"]
[Site "Kragero"]
[Date "2022.02.24"]
[Round "3.16"]
[White "Grave, Jacob Templen"]
[Black "Reimanis, Ritvars"]
[Result "1/2-1/2"]
[ECO "A62"]
[WhiteElo "2267"]
[BlackElo "2397"]
[Annotator "RC"]
[PlyCount "55"]
[EventDate "2022.02.23"]
[EventType "swiss"]
[EventCountry "NOR"]
[SourceTitle "playchess.com"]
[Source "ChessBase"]
[SourceQuality "1"]
[TimeControl "5400+30"]

1. d4 {[%emt 0:00:03]} Nf6 {[%emt 0:01:02]} 2. c4 {[%emt 0:00:10]} e6 {[%emt 0:00:04]} 3. g3 {[%emt 0:00:05]} c5 {[%emt 0:00:24]} 4. d5 {[%emt 0:00:06]} d6 {[%emt 0:00:18]} 5. Nc3 {[%emt 0:00:21]} exd5 {[%emt 0:00:34]} 6. cxd5 {[%emt 0:00:09]} g6 {[%emt 0:00:09]} 7. Bg2 {[%emt 0:00:14]} Bg7 {[%emt 0:00:05]} 8. Nf3 {[%emt 0:00:05]} O-O {[%emt 0:00:08]} 9. O-O {[%emt 0:00:07]} Na6 {[%emt 0:09:00]} 10. Bf4 {[%emt 0:06:17]} Nc7 {[%emt 0:00:46]} 11. a4 {[%emt 0:10:23]} h6 {[%emt 0:01:56]} 12. e4 {[%emt 0:11:35]} Bg4 {[%emt 0:05:48]} 13. Qd2 {[%emt 0:10:26]} g5 {[%emt 0:06:27]} 14. Be3 {[%emt 0:07:09]} Re8 {[%emt 0:08:34]} 15. Ne1 {[%emt 0:02:48]} Bd7 {[%emt 0:01:08]} 16. f3 {[%emt 0:07:00]} b5 {[%emt 0:03:49]} 17. axb5 {[%emt 0:03:09]} Nxb5 {[%emt 0:00:15]} 18. Nc2 {[%emt 0:00:07]} Rb8 {[%emt 0:19:04]} 19. Nxb5 {[%emt 0:07:01]} Bxb5 {[%emt 0:00:33]} 20. Rfb1 {[%emt 0:00:24]} a6 {[%emt 0:05:13]} 21. b4 {[%emt 0:02:21]} Nd7 {[%emt 0:08:46]} 22. Ra2 {[%emt 0:05:45]} Bc4 {[%emt 0:06:30]} 23. Ra3 {[%emt 0:00:57]} Ne5 {[%emt 0:01:33]} 24. Qd1 {[%emt 0:07:06]} Bb5 {[%emt 0:01:11]} 25. bxc5 {[%emt 0:00:28]} Nc4 {[%emt 0:00:10]} 26. Rab3 {[%emt 0:01:05]} Nxe3 {[%emt 0:00:19]} 27. Nxe3 {[%emt 0:00:06]} dxc5 {[%emt 0:00:15]} 28. Nf5 {[%emt 0:01:29]} 1/2-1/2